[Event "*** Titled Tuesday Blitz"]
[Site "Chess.com"]
[Date "2020.05.19"]
[Round "8"]
[White "Kapibara_Warri0r"]
[Black "Playgood28"]
[Result "0-1"]
[WhiteElo "2080"]
[BlackElo "2281"]
[TimeControl "180+1"]
[EndTime "13:35:07 PDT"]
[Termination "Playgood28 won by resignation"]

1. e4 {[%clk 0:03:00.9]} 1... e5 {[%clk 0:02:59.5]} 2. Nf3 {[%clk 0:03:00.7]}
2... d6 {[%clk 0:02:59.3]} 3. d4 {[%clk 0:02:59.7]} 3... exd4 {[%clk 0:02:59.3]}
4. Nxd4 {[%clk 0:02:59.5]} 4... Nf6 {[%clk 0:02:59.2]} 5. Nc3 {[%clk 0:02:58.7]}
5... Be7 {[%clk 0:02:59.6]} 6. Bc4 {[%clk 0:02:55.2]} 6... O-O {[%clk
0:02:58.6]} 7. O-O {[%clk 0:02:54.5]} 7... Nxe4 {[%clk 0:02:58.3]} 8. Nxe4
{[%clk 0:02:51.7]} 8... d5 {[%clk 0:02:58]} 9. Bd3 {[%clk 0:02:51.9]} 9... dxe4
{[%clk 0:02:58]} 10. Bxe4 {[%clk 0:02:52.8]} 10... Re8 {[%clk 0:02:58]} 11. Be3
{[%clk 0:02:13.2]} 11... Bf6 {[%clk 0:02:53]} 12. Bd3 {[%clk 0:02:00.4]} 12...
Nd7 {[%clk 0:02:49.7]} 13. Nf5 {[%clk 0:01:20.4]} 13... Ne5 {[%clk 0:02:41.8]}
14. Qh5 {[%clk 0:00:57.1]} 14... Nxd3 {[%clk 0:02:18.1]} 15. cxd3 {[%clk
0:00:53.4]} 15... g6 {[%clk 0:01:55.1]} 16. Nh6+ {[%clk 0:00:47.8]} 16... Kg7
{[%clk 0:01:54.5]} 17. Qf3 {[%clk 0:00:36.8]} 17... Be6 {[%clk 0:01:29.8]} 18.
d4 {[%clk 0:00:34.2]} 18... Qd5 {[%clk 0:01:24.7]} 19. Qxd5 {[%clk 0:00:26.9]}
19... Bxd5 {[%clk 0:01:24.4]} 20. Ng4 {[%clk 0:00:27]} 20... Be7 {[%clk
0:01:19.4]} 21. Bh6+ {[%clk 0:00:26.2]} 21... Kg8 {[%clk 0:01:17.7]} 22. Ne5
{[%clk 0:00:25]} 22... f6 {[%clk 0:01:12.4]} 23. Nd3 {[%clk 0:00:15.9]} 23...
Bc4 {[%clk 0:01:08.2]} 24. Rfd1 {[%clk 0:00:15.9]} 24... Bxd3 {[%clk 0:01:04.8]}
25. Rd2 {[%clk 0:00:15.2]} 0-1

[Event "*** Titled Tuesday Blitz"]
[Site "Chess.com"]
[Date "2020.05.19"]
[Round "8"]
[White "H3nriqueTV"]
[Black "Sesleria"]
[Result "1-0"]
[WhiteElo "2092"]
[BlackElo "1925"]
[TimeControl "180+1"]
[EndTime "13:35:07 PDT"]
[Termination "H3nriqueTV won by checkmate"]

1. e4 {[%clk 0:02:59.4]} 1... e5 {[%clk 0:02:55.5]} 2. Nf3 {[%clk 0:02:37.4]}
2... Nc6 {[%clk 0:02:54.9]} 3. Bc4 {[%clk 0:02:36.5]} 3... Nf6 {[%clk
0:02:54.5]} 4. d3 {[%clk 0:02:35.1]} 4... Be7 {[%clk 0:02:53.8]} 5. c3 {[%clk
0:02:33.8]} 5... d6 {[%clk 0:02:51.8]} 6. O-O {[%clk 0:02:25.1]} 6... O-O {[%clk
0:02:37.8]} 7. h3 {[%clk 0:02:13.5]} 7... Qd7 {[%clk 0:02:19.6]} 8. Nbd2 {[%clk
0:02:07]} 8... Na5 {[%clk 0:02:09.8]} 9. Bb3 {[%clk 0:02:06.2]} 9... Nxb3 {[%clk
0:02:09.4]} 10. axb3 {[%clk 0:02:05.7]} 10... Ne8 {[%clk 0:01:50.6]} 11. Re1
{[%clk 0:01:52.8]} 11... f5 {[%clk 0:01:47.4]} 12. exf5 {[%clk 0:01:49.4]} 12...
Qxf5 {[%clk 0:01:45.7]} 13. Ne4 {[%clk 0:01:49.4]} 13... Qg6 {[%clk 0:01:22.5]}
14. Ng3 {[%clk 0:01:38.7]} 14... Bd7 {[%clk 0:01:13.2]} 15. d4 {[%clk 0:01:37]}
15... Bc6 {[%clk 0:01:12.6]} 16. dxe5 {[%clk 0:01:20.3]} 16... Bxf3 {[%clk
0:00:47]} 17. gxf3 {[%clk 0:01:21.2]} 17... dxe5 {[%clk 0:00:33.1]} 18. Qd5+
{[%clk 0:01:17.1]} 18... Kh8 {[%clk 0:00:32.3]} 19. Qxe5 {[%clk 0:01:17.7]}
19... Bd6 {[%clk 0:00:28.5]} 20. Qe6 {[%clk 0:01:16.8]} 20... Qd3 {[%clk
0:00:26.1]} 21. Be3 {[%clk 0:01:12.6]} 21... Bxg3 {[%clk 0:00:22.2]} 22. fxg3
{[%clk 0:01:12.3]} 22... Rxf3 {[%clk 0:00:22.3]} 23. Kg2 {[%clk 0:01:11.6]}
23... Rf6 {[%clk 0:00:20.5]} 24. Qe7 {[%clk 0:01:08.1]} 24... Qd5+ {[%clk
0:00:18.9]} 25. Kh2 {[%clk 0:01:07]} 25... Re6 {[%clk 0:00:10.6]} 26. Qf8#
{[%clk 0:01:01.9]} 1-0

[Event "*** Titled Tuesday Blitz"]
[Site "Chess.com"]
[Date "2020.05.19"]
[Round "8"]
[White "GMBenjaminFinegold"]
[Black "GMCarbone"]
[Result "1-0"]
[WhiteElo "2544"]
[BlackElo "2344"]
[TimeControl "180+1"]
[EndTime "13:35:13 PDT"]
[Termination "GMBenjaminFinegold won by resignation"]

1. d4 {[%clk 0:03:00.9]} 1... Nf6 {[%clk 0:02:59.9]} 2. c4 {[%clk 0:03:00.5]}
2... g6 {[%clk 0:03:00.3]} 3. Nc3 {[%clk 0:02:59.1]} 3... d5 {[%clk 0:03:00.8]}
4. e3 {[%clk 0:02:58.7]} 4... Bg7 {[%clk 0:03:00.5]} 5. Qb3 {[%clk 0:02:58.8]}
5... dxc4 {[%clk 0:02:55.7]} 6. Bxc4 {[%clk 0:02:58.4]} 6... O-O {[%clk
0:02:56.6]} 7. Nf3 {[%clk 0:02:58.6]} 7... Nc6 {[%clk 0:02:55.8]} 8. Be2 {[%clk
0:02:51.4]} 8... Na5 {[%clk 0:02:54.1]} 9. Qc2 {[%clk 0:02:49.2]} 9... Bf5
{[%clk 0:02:47.5]} 10. e4 {[%clk 0:02:48.6]} 10... Bg4 {[%clk 0:02:47.6]} 11.
Be3 {[%clk 0:02:48.6]} 11... Nc6 {[%clk 0:02:47.5]} 12. Rd1 {[%clk 0:02:46.7]}
12... e6 {[%clk 0:02:43.6]} 13. O-O {[%clk 0:02:45.3]} 13... Qe7 {[%clk
0:02:37.5]} 14. a3 {[%clk 0:02:43.8]} 14... Rfd8 {[%clk 0:02:35.4]} 15. h3
{[%clk 0:02:43.6]} 15... Bxf3 {[%clk 0:02:35.1]} 16. Bxf3 {[%clk 0:02:44.5]}
16... Nd7 {[%clk 0:02:32.6]} 17. e5 {[%clk 0:02:43.7]} 17... Nb6 {[%clk
0:02:28.5]} 18. Bxc6 {[%clk 0:02:37.5]} 18... bxc6 {[%clk 0:02:29.4]} 19. Ne4
{[%clk 0:02:38]} 19... Nd5 {[%clk 0:02:17.2]} 20. Bg5 {[%clk 0:02:32.5]} 20...
f6 {[%clk 0:02:16.1]} 21. exf6 {[%clk 0:02:33.4]} 21... Nxf6 {[%clk 0:02:14.3]}
22. Nxf6+ {[%clk 0:02:34.3]} 22... Bxf6 {[%clk 0:02:14.2]} 23. Bxf6 {[%clk
0:02:35.2]} 23... Qxf6 {[%clk 0:02:14.7]} 24. Qxc6 {[%clk 0:02:34.3]} 24... Rab8
{[%clk 0:02:03.7]} 25. b4 {[%clk 0:02:17.3]} 25... Qe7 {[%clk 0:01:57.8]} 26.
Rfe1 {[%clk 0:02:12.4]} 26... Rd6 {[%clk 0:01:57.8]} 27. Qc5 {[%clk 0:02:12.1]}
27... Rf8 {[%clk 0:01:54]} 28. Qxa7 {[%clk 0:02:04.4]} 28... Qf6 {[%clk
0:01:52.9]} 29. Re2 {[%clk 0:01:50.3]} 29... e5 {[%clk 0:01:47.2]} 30. Qxc7
{[%clk 0:01:36.5]} 30... exd4 {[%clk 0:01:43.2]} 31. Rd3 {[%clk 0:01:29.2]}
31... Rc6 {[%clk 0:01:39.1]} 32. Qe5 {[%clk 0:01:17.4]} 32... Rc1+ {[%clk
0:01:33.4]} 33. Kh2 {[%clk 0:01:17.6]} 33... Qxe5+ {[%clk 0:01:32.3]} 34. Rxe5
{[%clk 0:01:18.5]} 34... Rxf2 {[%clk 0:01:32.8]} 35. Rxd4 {[%clk 0:01:17.8]}
35... Rcc2 {[%clk 0:01:26.4]} 36. Rg4 {[%clk 0:01:13.3]} 36... Ra2 {[%clk
0:01:26.3]} 37. Rg3 {[%clk 0:01:13.1]} 37... Kg7 {[%clk 0:01:24.5]} 38. Ree3
{[%clk 0:01:12.9]} 38... h5 {[%clk 0:01:22]} 39. Rb3 {[%clk 0:01:10.9]} 39... h4
{[%clk 0:01:16.4]} 40. Rg4 {[%clk 0:01:10.3]} 40... Kf6 {[%clk 0:01:14.3]} 41.
b5 {[%clk 0:01:10]} 41... g5 {[%clk 0:01:09.5]} 42. b6 {[%clk 0:01:06.1]} 42...
Rab2 {[%clk 0:01:09.8]} 43. Rxb2 {[%clk 0:01:04.9]} 43... Rxb2 {[%clk
0:01:10.7]} 44. Rb4 {[%clk 0:01:05.1]} 44... Rd2 {[%clk 0:00:57.2]} 45. b7
{[%clk 0:01:03.3]} 45... g4 {[%clk 0:00:58.1]} 46. hxg4 {[%clk 0:00:59.9]} 1-0

[Event "*** Titled Tuesday Blitz"]
[Site "Chess.com"]
[Date "2020.05.19"]
[Round "8"]
[White "barbara25"]
[Black "MF1966Idrisov"]
[Result "1-0"]
[WhiteElo "2199"]
[BlackElo "2309"]
[TimeControl "180+1"]
[EndTime "13:35:14 PDT"]
[Termination "barbara25 won by resignation"]

1. e4 {[%clk 0:03:00.9]} 1... d5 {[%clk 0:02:58.7]} 2. exd5 {[%clk 0:03:00.1]}
2... Qxd5 {[%clk 0:02:58.7]} 3. Nf3 {[%clk 0:03:00.7]} 3... a6 {[%clk
0:02:57.2]} 4. Be2 {[%clk 0:03:00.7]} 4... Nf6 {[%clk 0:02:54.7]} 5. d4 {[%clk
0:03:00]} 5... Bg4 {[%clk 0:02:53]} 6. c4 {[%clk 0:02:59.8]} 6... Qd6 {[%clk
0:02:51.8]} 7. Nc3 {[%clk 0:02:58.9]} 7... e6 {[%clk 0:02:51.1]} 8. h3 {[%clk
0:02:58.5]} 8... Bh5 {[%clk 0:02:50.2]} 9. O-O {[%clk 0:02:57.8]} 9... Be7
{[%clk 0:02:49.7]} 10. c5 {[%clk 0:02:57.8]} 10... Qd8 {[%clk 0:02:42.5]} 11.
Be3 {[%clk 0:02:54.7]} 11... O-O {[%clk 0:02:41]} 12. Ne5 {[%clk 0:02:53.9]}
12... Bxe2 {[%clk 0:02:39.8]} 13. Qxe2 {[%clk 0:02:53]} 13... Nd5 {[%clk
0:02:38.7]} 14. Nxd5 {[%clk 0:02:52.1]} 14... Qxd5 {[%clk 0:02:38.1]} 15. a3
{[%clk 0:02:40.7]} 15... Nc6 {[%clk 0:02:36.2]} 16. Nxc6 {[%clk 0:02:35.5]}
16... Qxc6 {[%clk 0:02:35.1]} 17. b4 {[%clk 0:02:35.7]} 17... Rad8 {[%clk
0:02:33.1]} 18. Rad1 {[%clk 0:02:35.4]} 18... Bf6 {[%clk 0:02:32.3]} 19. Qc4
{[%clk 0:02:30.8]} 19... Rd5 {[%clk 0:02:29.3]} 20. a4 {[%clk 0:02:28.2]} 20...
Qxa4 {[%clk 0:02:26.6]} 21. f4 {[%clk 0:02:19]} 21... Rfd8 {[%clk 0:02:23.8]}
22. Rd2 {[%clk 0:02:05.6]} 22... h6 {[%clk 0:02:13.7]} 23. Rfd1 {[%clk
0:02:00.8]} 23... Ra8 {[%clk 0:02:04.7]} 24. Kf2 {[%clk 0:01:58.4]} 24... b5
{[%clk 0:01:50.9]} 25. Qc3 {[%clk 0:01:45.8]} 25... a5 {[%clk 0:01:46.4]} 26.
Ra1 {[%clk 0:01:42]} 26... axb4 {[%clk 0:01:44.5]} 27. Rxa4 {[%clk 0:01:41.6]}
27... Rxa4 {[%clk 0:01:42.6]} 28. Qb3 {[%clk 0:01:38.3]} 28... c6 {[%clk
0:01:36.7]} 29. Ra2 {[%clk 0:01:35.6]} 29... Rd8 {[%clk 0:01:29.4]} 30. Rxa4
{[%clk 0:01:34.7]} 30... bxa4 {[%clk 0:01:29.4]} 31. Qxa4 {[%clk 0:01:34.6]}
31... Rb8 {[%clk 0:01:29.6]} 32. Qa7 {[%clk 0:01:33.2]} 32... Rd8 {[%clk
0:01:26.3]} 33. Qb6 {[%clk 0:01:32.9]} 33... Ra8 {[%clk 0:01:20.4]} 34. Qxb4
{[%clk 0:01:30.8]} 34... Ra2+ {[%clk 0:01:20]} 35. Kf3 {[%clk 0:01:29.2]} 35...
g5 {[%clk 0:01:19.4]} 36. fxg5 {[%clk 0:01:28.5]} 36... hxg5 {[%clk 0:01:19.6]}
37. Qb7 {[%clk 0:01:24.8]} 37... Ra3 {[%clk 0:01:15.9]} 38. Qd7 {[%clk 0:01:14]}
38... Kg7 {[%clk 0:01:11.7]} 39. g3 {[%clk 0:01:00.9]} 39... Kg6 {[%clk
0:01:10.9]} 40. Qxc6 {[%clk 0:00:41.6]} 1-0

[Event "*** Titled Tuesday Blitz"]
[Site "Chess.com"]
[Date "2020.05.19"]
[Round "8"]
[White "GadimbayliA"]
[Black "GjakanTati"]
[Result "0-1"]
[WhiteElo "2819"]
[BlackElo "2645"]
[TimeControl "180+1"]
[EndTime "13:35:15 PDT"]
[Termination "GjakanTati won by resignation"]

1. e4 {[%clk 0:01:51.8]} 1... d6 {[%clk 0:02:56.1]} 2. d4 {[%clk 0:01:51.8]}
2... Nf6 {[%clk 0:02:55.4]} 3. Nc3 {[%clk 0:01:52.3]} 3... g6 {[%clk 0:02:55.5]}
4. Nf3 {[%clk 0:01:52.6]} 4... Bg7 {[%clk 0:02:56]} 5. Be2 {[%clk 0:01:53.3]}
5... O-O {[%clk 0:02:56.1]} 6. O-O {[%clk 0:01:53.9]} 6... e5 {[%clk 0:02:56.1]}
7. dxe5 {[%clk 0:01:54.1]} 7... dxe5 {[%clk 0:02:56.1]} 8. Qxd8 {[%clk 0:01:55]}
8... Rxd8 {[%clk 0:02:55.9]} 9. Nxe5 {[%clk 0:01:53.8]} 9... Nxe4 {[%clk
0:02:31.1]} 10. Nxe4 {[%clk 0:01:54.7]} 10... Bxe5 {[%clk 0:02:30.7]} 11. Bg5
{[%clk 0:01:54.8]} 11... Re8 {[%clk 0:02:28.9]} 12. Rfe1 {[%clk 0:01:48.9]}
12... Bxb2 {[%clk 0:02:20]} 13. Nf6+ {[%clk 0:01:38.1]} 13... Bxf6 {[%clk
0:02:17.3]} 14. Bxf6 {[%clk 0:01:39]} 14... Bf5 {[%clk 0:02:11.9]} 15. Bb5
{[%clk 0:01:12.8]} 15... Nd7 {[%clk 0:02:09.8]} 16. Bxd7 {[%clk 0:01:11.1]}
16... Bxd7 {[%clk 0:02:10.7]} 17. f3 {[%clk 0:01:11.7]} 17... Be6 {[%clk
0:02:03.2]} 18. Kf2 {[%clk 0:01:11.4]} 18... a5 {[%clk 0:02:02]} 19. a3 {[%clk
0:01:10.1]} 19... Ra6 {[%clk 0:01:49.3]} 20. Rab1 {[%clk 0:01:10.1]} 20... Rb8
{[%clk 0:01:48.5]} 21. g4 {[%clk 0:00:52.5]} 21... Rc6 {[%clk 0:01:47.5]} 22. c3
{[%clk 0:00:51.2]} 22... Rc4 {[%clk 0:01:42.6]} 23. g5 {[%clk 0:00:45.8]} 23...
Ra4 {[%clk 0:01:40.4]} 24. Red1 {[%clk 0:00:44.2]} 24... b6 {[%clk 0:01:35.3]}
25. Rd3 {[%clk 0:00:37.3]} 25... Bf5 {[%clk 0:01:23.5]} 26. Rbd1 {[%clk
0:00:16.7]} 26... Bxd3 {[%clk 0:01:22.9]} 27. Rxd3 {[%clk 0:00:17.6]} 27... Rxa3
{[%clk 0:01:22.7]} 28. h4 {[%clk 0:00:18.2]} 28... Ra2+ {[%clk 0:01:21.8]} 29.
Kg3 {[%clk 0:00:18.1]} 29... a4 {[%clk 0:01:21.8]} 30. h5 {[%clk 0:00:19]} 30...
gxh5 {[%clk 0:01:19.9]} 31. Rd7 {[%clk 0:00:15.9]} 31... Rc8 {[%clk 0:01:17.1]}
32. c4 {[%clk 0:00:12]} 32... Rc2 {[%clk 0:01:15.7]} 0-1

[Event "*** Titled Tuesday Blitz"]
[Site "Chess.com"]
[Date "2020.05.19"]
[Round "8"]
[White "Mikhail_Golubev"]
[Black "SaqoChess_Twitch"]
[Result "0-1"]
[WhiteElo "2540"]
[BlackElo "2416"]
[TimeControl "180+1"]
[EndTime "13:35:15 PDT"]
[Termination "SaqoChess_Twitch won on time"]

1. e4 {[%clk 0:03:00.9]} 1... c5 {[%clk 0:02:58.6]} 2. Nf3 {[%clk 0:03:00.5]}
2... d6 {[%clk 0:02:58.9]} 3. d4 {[%clk 0:03:00.7]} 3... cxd4 {[%clk 0:02:59.8]}
4. Nxd4 {[%clk 0:03:01.3]} 4... Nf6 {[%clk 0:03:00.2]} 5. Nc3 {[%clk 0:03:01.8]}
5... g6 {[%clk 0:03:00.8]} 6. Be3 {[%clk 0:03:01.1]} 6... Bg7 {[%clk 0:03:00.9]}
7. f3 {[%clk 0:03:01]} 7... O-O {[%clk 0:03:01.4]} 8. Qd2 {[%clk 0:03:00.9]}
8... Nc6 {[%clk 0:03:02]} 9. O-O-O {[%clk 0:02:59.2]} 9... d5 {[%clk 0:03:02.2]}
10. Kb1 {[%clk 0:02:58.9]} 10... e5 {[%clk 0:02:43]} 11. Nxc6 {[%clk 0:02:51.6]}
11... bxc6 {[%clk 0:02:43.9]} 12. exd5 {[%clk 0:02:51.3]} 12... Nxd5 {[%clk
0:02:42.1]} 13. Nxd5 {[%clk 0:02:50.1]} 13... cxd5 {[%clk 0:02:43]} 14. Qxd5
{[%clk 0:02:50.1]} 14... Qc7 {[%clk 0:02:42.7]} 15. Qxa8 {[%clk 0:02:11.4]}
15... Bf5 {[%clk 0:02:39.6]} 16. Qd5 {[%clk 0:02:10.4]} 16... Qxc2+ {[%clk
0:02:22.7]} 17. Ka1 {[%clk 0:02:09.9]} 17... e4 {[%clk 0:02:22.7]} 18. Qb3
{[%clk 0:01:51.9]} 18... Bxb2+ {[%clk 0:02:12.1]} 19. Qxb2 {[%clk 0:01:51.6]}
19... Qxd1+ {[%clk 0:02:13]} 20. Qc1 {[%clk 0:01:42.3]} 20... Qd6 {[%clk
0:02:07.4]} 21. Bc4 {[%clk 0:00:29.9]} 21... exf3 {[%clk 0:02:06.5]} 22. Rd1
{[%clk 0:00:20.9]} 22... Qxh2 {[%clk 0:01:51.1]} 23. gxf3 {[%clk 0:00:18.9]}
23... Rc8 {[%clk 0:01:48.9]} 24. Bh6 {[%clk 0:00:09.3]} 24... Be6 {[%clk
0:01:37.4]} 25. Qg5 {[%clk 0:00:04.4]} 25... Re8 {[%clk 0:01:13.4]} 26. Bxe6
{[%clk 0:00:02.2]} 26... fxe6 {[%clk 0:01:14.3]} 0-1

[Event "*** Titled Tuesday Blitz"]
[Site "Chess.com"]
[Date "2020.05.19"]
[Round "8"]
[White "floplover"]
[Black "SergioGarciaFuentes"]
[Result "1-0"]
[WhiteElo "2301"]
[BlackElo "2117"]
[TimeControl "180+1"]
[EndTime "13:35:17 PDT"]
[Termination "floplover won by resignation"]

1. d4 {[%clk 0:03:00.9]} 1... d5 {[%clk 0:02:58.2]} 2. c4 {[%clk 0:03:01]} 2...
c6 {[%clk 0:02:56.1]} 3. Nc3 {[%clk 0:03:01]} 3... Nf6 {[%clk 0:02:55]} 4. Nf3
{[%clk 0:03:01.2]} 4... a6 {[%clk 0:02:52.5]} 5. a4 {[%clk 0:02:58.7]} 5... g6
{[%clk 0:02:47.1]} 6. e3 {[%clk 0:02:54.5]} 6... Bg7 {[%clk 0:02:46.6]} 7. Be2
{[%clk 0:02:52.8]} 7... O-O {[%clk 0:02:46.1]} 8. O-O {[%clk 0:02:50.3]} 8... a5
{[%clk 0:02:25.9]} 9. Ne5 {[%clk 0:02:38.3]} 9... Na6 {[%clk 0:02:21.6]} 10. Qb3
{[%clk 0:02:32.7]} 10... Nb4 {[%clk 0:02:18.9]} 11. Na2 {[%clk 0:02:32.8]} 11...
Na6 {[%clk 0:01:55.9]} 12. Bd2 {[%clk 0:02:20]} 12... c5 {[%clk 0:01:33.4]} 13.
Bf3 {[%clk 0:01:43.9]} 13... Ne4 {[%clk 0:00:45.6]} 14. Rfd1 {[%clk 0:01:38.4]}
14... Nxd2 {[%clk 0:00:41.4]} 15. Rxd2 {[%clk 0:01:37.4]} 15... cxd4 {[%clk
0:00:41.6]} 16. exd4 {[%clk 0:01:29.3]} 16... dxc4 {[%clk 0:00:27.2]} 17. Nxc4
{[%clk 0:01:23.4]} 17... Bxd4 {[%clk 0:00:27.1]} 18. Rad1 {[%clk 0:01:21.7]}
18... e5 {[%clk 0:00:27]} 19. Nxe5 {[%clk 0:01:19.1]} 19... Be6 {[%clk
0:00:20.6]} 20. Qxb7 {[%clk 0:01:12.8]} 20... Bxe5 {[%clk 0:00:16]} 21. Rxd8
{[%clk 0:01:07.4]} 21... Raxd8 {[%clk 0:00:16.4]} 22. Rxd8 {[%clk 0:01:02.9]}
22... Rxd8 {[%clk 0:00:12.4]} 23. Qxa6 {[%clk 0:01:00.6]} 23... Bxa2 {[%clk
0:00:10.7]} 24. Qxa5 {[%clk 0:00:58.8]} 24... Bxb2 {[%clk 0:00:10.2]} 25. Qxd8+
{[%clk 0:00:58.4]} 1-0

[Event "*** Titled Tuesday Blitz"]
[Site "Chess.com"]
[Date "2020.05.19"]
[Round "8"]
[White "Buffy7"]
[Black "THE_PLAYER6"]
[Result "1-0"]
[WhiteElo "2647"]
[BlackElo "2515"]
[TimeControl "180+1"]
[EndTime "13:35:20 PDT"]
[Termination "Buffy7 won by resignation"]

1. d4 {[%clk 0:03:00.5]} 1... d5 {[%clk 0:02:59]} 2. Nf3 {[%clk 0:03:00.7]} 2...
Nf6 {[%clk 0:02:58.6]} 3. c4 {[%clk 0:03:01.6]} 3... e6 {[%clk 0:02:58.7]} 4. g3
{[%clk 0:03:02.1]} 4... Be7 {[%clk 0:02:57.1]} 5. Bg2 {[%clk 0:03:02.5]} 5...
O-O {[%clk 0:02:57.3]} 6. O-O {[%clk 0:03:03.4]} 6... dxc4 {[%clk 0:02:57.2]} 7.
Ne5 {[%clk 0:03:03.8]} 7... Nc6 {[%clk 0:02:56.7]} 8. Nxc6 {[%clk 0:03:04.1]}
8... bxc6 {[%clk 0:02:56.9]} 9. Na3 {[%clk 0:03:04.6]} 9... Bxa3 {[%clk
0:02:56.1]} 10. bxa3 {[%clk 0:03:05.5]} 10... Nd5 {[%clk 0:02:46.2]} 11. Qd2
{[%clk 0:02:59.8]} 11... Rb8 {[%clk 0:02:04]} 12. Rd1 {[%clk 0:02:56]} 12... c3
{[%clk 0:01:43.1]} 13. Qc2 {[%clk 0:02:54.5]} 13... Ba6 {[%clk 0:01:27.2]} 14.
e4 {[%clk 0:02:53.1]} 14... Nb6 {[%clk 0:01:27]} 15. a4 {[%clk 0:02:38.6]} 15...
Qd7 {[%clk 0:01:07.8]} 16. Ba3 {[%clk 0:02:21.7]} 16... Rfd8 {[%clk 0:01:06]}
17. Bc5 {[%clk 0:02:21]} 17... Rb7 {[%clk 0:00:56]} 18. a5 {[%clk 0:02:01.8]}
18... Nc4 {[%clk 0:00:52.3]} 19. Qxc3 {[%clk 0:02:02]} 19... Nb2 {[%clk
0:00:45.5]} 20. Rd2 {[%clk 0:01:38.3]} 20... Na4 {[%clk 0:00:44]} 21. Qa3 {[%clk
0:01:35.2]} 21... Nxc5 {[%clk 0:00:40.3]} 22. Qxc5 {[%clk 0:01:36.1]} 22... Rdb8
{[%clk 0:00:37.7]} 23. h4 {[%clk 0:01:27.3]} 23... h6 {[%clk 0:00:33.3]} 24. e5
{[%clk 0:01:24.4]} 24... Rb1+ {[%clk 0:00:31.6]} 25. Rxb1 {[%clk 0:01:23]} 25...
Rxb1+ {[%clk 0:00:32.5]} 26. Kh2 {[%clk 0:01:23.2]} 26... Bb5 {[%clk 0:00:19.8]}
27. Qxa7 {[%clk 0:01:20.2]} 27... g5 {[%clk 0:00:18.1]} 28. a6 {[%clk
0:01:10.5]} 28... Qe7 {[%clk 0:00:14.8]} 29. Qb8+ {[%clk 0:01:08.9]} 29... Kg7
{[%clk 0:00:14.7]} 30. a7 {[%clk 0:01:09.4]} 30... gxh4 {[%clk 0:00:13.3]} 31.
a8=Q {[%clk 0:01:07.7]} 31... hxg3+ {[%clk 0:00:13.7]} 32. fxg3 {[%clk
0:01:08.3]} 1-0

[Event "*** Titled Tuesday Blitz"]
[Site "Chess.com"]
[Date "2020.05.19"]
[Round "8"]
[White "Everyfishknows"]
[Black "dennisodessa"]
[Result "0-1"]
[WhiteElo "2363"]
[BlackElo "2232"]
[TimeControl "180+1"]
[EndTime "13:35:29 PDT"]
[Termination "dennisodessa won on time"]

1. d4 {[%clk 0:02:58.9]} 1... Nf6 {[%clk 0:02:59.4]} 2. c4 {[%clk 0:02:55.7]}
2... e6 {[%clk 0:03:00.3]} 3. Nc3 {[%clk 0:02:54.3]} 3... Bb4 {[%clk 0:03:00.9]}
4. e3 {[%clk 0:02:54.4]} 4... b6 {[%clk 0:03:01.6]} 5. Bd3 {[%clk 0:02:47.4]}
5... Bb7 {[%clk 0:03:01.6]} 6. Nf3 {[%clk 0:02:48.1]} 6... O-O {[%clk 0:02:59]}
7. O-O {[%clk 0:02:46.8]} 7... Bxc3 {[%clk 0:02:59]} 8. bxc3 {[%clk 0:02:46.6]}
8... Ne4 {[%clk 0:02:59.9]} 9. Qc2 {[%clk 0:02:30.7]} 9... f5 {[%clk 0:02:57.1]}
10. Nd2 {[%clk 0:02:26.1]} 10... Nxd2 {[%clk 0:02:57.1]} 11. Bxd2 {[%clk
0:02:26]} 11... Qh4 {[%clk 0:02:58]} 12. f3 {[%clk 0:01:15.2]} 12... d6 {[%clk
0:02:56.7]} 13. Be1 {[%clk 0:01:13.8]} 13... Qh6 {[%clk 0:02:48.3]} 14. e4
{[%clk 0:01:07.6]} 14... fxe4 {[%clk 0:02:46.4]} 15. Bxe4 {[%clk 0:01:05.1]}
15... Qe3+ {[%clk 0:02:45.6]} 16. Bf2 {[%clk 0:00:46.8]} 16... Bxe4 {[%clk
0:02:45.6]} 17. Qxe4 {[%clk 0:00:31.6]} 17... Qxe4 {[%clk 0:02:45.4]} 18. fxe4
{[%clk 0:00:32.5]} 18... Nd7 {[%clk 0:02:46.3]} 19. Be3 {[%clk 0:00:26.9]} 19...
e5 {[%clk 0:02:45.9]} 20. g3 {[%clk 0:00:25.4]} 20... Rfe8 {[%clk 0:02:40.8]}
21. d5 {[%clk 0:00:15.1]} 21... Nf6 {[%clk 0:02:39.7]} 22. Kg2 {[%clk
0:00:03.7]} 22... Nxe4 {[%clk 0:02:40.6]} 23. Rac1 {[%clk 0:00:04.3]} 23... a5
{[%clk 0:02:36.1]} 24. Rfe1 {[%clk 0:00:03.6]} 24... Nf6 {[%clk 0:02:30.3]} 25.
a4 {[%clk 0:00:03.7]} 25... Rf8 {[%clk 0:02:30.7]} 26. Rf1 {[%clk 0:00:03.5]}
26... Rf7 {[%clk 0:02:31.6]} 27. h3 {[%clk 0:00:03]} 27... Raf8 {[%clk
0:02:31.8]} 28. g4 {[%clk 0:00:03.5]} 28... h5 {[%clk 0:02:19.9]} 29. g5 {[%clk
0:00:03.1]} 29... Ne4 {[%clk 0:02:20.4]} 30. Rfe1 {[%clk 0:00:03.7]} 30... Rf3
{[%clk 0:02:04.6]} 31. Bxb6 {[%clk 0:00:01.5]} 31... Rg3+ {[%clk 0:01:52.4]} 32.
Kh2 {[%clk 0:00:02]} 32... Rff3 {[%clk 0:01:53.3]} 33. Bxc7 {[%clk 0:00:01.1]}
33... Rf2+ {[%clk 0:01:27.2]} 0-1

[Event "*** Titled Tuesday Blitz"]
[Site "Chess.com"]
[Date "2020.05.19"]
[Round "8"]
[White "silverback96"]
[Black "Efremov_Vlad"]
[Result "1-0"]
[WhiteElo "2312"]
[BlackElo "2139"]
[TimeControl "180+1"]
[EndTime "13:35:29 PDT"]
[Termination "silverback96 won by resignation"]

1. e4 {[%clk 0:03:00.9]} 1... c5 {[%clk 0:02:59.4]} 2. Nf3 {[%clk 0:03:00]} 2...
Nc6 {[%clk 0:02:59.4]} 3. d4 {[%clk 0:03:00.5]} 3... cxd4 {[%clk 0:02:58.5]} 4.
Nxd4 {[%clk 0:03:01.4]} 4... Nf6 {[%clk 0:02:58.6]} 5. Nc3 {[%clk 0:03:01.9]}
5... e5 {[%clk 0:02:58]} 6. Ndb5 {[%clk 0:03:02.1]} 6... d6 {[%clk 0:02:58.3]}
7. Bg5 {[%clk 0:03:01.5]} 7... a6 {[%clk 0:02:58.3]} 8. Na3 {[%clk 0:03:01.6]}
8... b5 {[%clk 0:02:58.4]} 9. Bxf6 {[%clk 0:03:02.5]} 9... gxf6 {[%clk
0:02:57.5]} 10. Nd5 {[%clk 0:03:03]} 10... Be6 {[%clk 0:02:51.6]} 11. c4 {[%clk
0:02:07.1]} 11... Qa5+ {[%clk 0:01:48.7]} 12. Qd2 {[%clk 0:02:05.6]} 12... Bxd5
{[%clk 0:01:06.7]} 13. Qxa5 {[%clk 0:01:53]} 13... Nxa5 {[%clk 0:01:04.6]} 14.
cxd5 {[%clk 0:01:51.3]} 14... Rc8 {[%clk 0:01:01]} 15. Be2 {[%clk 0:01:23.7]}
15... Bh6 {[%clk 0:00:52.9]} 16. O-O {[%clk 0:01:17.1]} 16... Ke7 {[%clk
0:00:46.5]} 17. Bg4 {[%clk 0:01:16.5]} 17... Rc5 {[%clk 0:00:44.6]} 18. b4
{[%clk 0:01:13.7]} 18... Nc4 {[%clk 0:00:16]} 19. bxc5 {[%clk 0:01:11.9]} 19...
Nxa3 {[%clk 0:00:16.9]} 20. c6 {[%clk 0:01:09.4]} 20... Kd8 {[%clk 0:00:16.6]}
21. g3 {[%clk 0:01:04.1]} 21... Kc7 {[%clk 0:00:16.4]} 22. Bf5 {[%clk
0:01:03.6]} 22... Nc2 {[%clk 0:00:15.2]} 23. Rab1 {[%clk 0:01:01.7]} 23... Nd4
{[%clk 0:00:14.7]} 24. a4 {[%clk 0:01:01.6]} 24... Rb8 {[%clk 0:00:11.5]} 25.
axb5 {[%clk 0:01:01.7]} 25... axb5 {[%clk 0:00:08.7]} 26. Ra1 {[%clk 0:01:02]}
26... b4 {[%clk 0:00:02.8]} 27. Ra7+ {[%clk 0:01:01.2]} 27... Kd8 {[%clk
0:00:03]} 28. c7+ {[%clk 0:01:01]} 1-0